Workbook

Sheet PRESUPUESTO
B1: Procesos | D1: META 2020 | E1: PRESUPUESTO
A2: cuenta | B2: Garantizar que los planes y programas de estudios sean pertinentes y contribuyan a que los estudiantes puedan avanzar exitosamente en su trayectoria educativa, al tiempo que desarrollen aprendizajes significativos y competencias que les sirvan a lo largo de la vida. | C2: UNIDAD DE MEDIDA | E2: FEDERAL | F2: ESTATAL | G2: PROPIO | H2: TOTAL
A3: 33000 | B3: Elaborar Estudios de factibilidad de los programas educativos | C3: Documento | D3: 3 | E3: $3,000.00 | F3: $3,000.00 | G3: 0 | H3: =SUM(E3:G3) -> $6,000.00
B4: Elaborar Análisis Situacional del Trabajo (AST) con ayuda del comité de pertinencia | C4: Documento | D4: 3 | E4: $1,500.00 | F4: $1,500.00 | G4: 0 | H4: =SUM(E4:G4) -> $3,000.00
A5: 22100 | B5: ALIMENTACION | E5: $1,000.00 | F5: $1,000.00 | G5: 0 | H5: $2,000.00
A6: 22300 | B6: UTENCILIOS | E6: $500.00 | F6: $500.00 | G6: 0 | H6: $1,000.00
B7: Aprobación de los programas educativos por parte del comité de pertinencia | C7: Documento | D7: 3 | E7: $500.00 | F7: $500.00 | G7: 0 | H7: =SUM(E7:G7) -> $1,000.00
A8: 22300 | B8: ALIMENTACION | E8: $500.00 | F8: $500.00 | G8: 0 | H8: $1,000.00
B9: Formar Profesionistas capacitados para el desarrollo de sus actividades y posicionar a los egresados en el sector productivo. | C9: UNIDAD DE MEDIDA | D9: META 2020 | E9: FEDERAL | F9: ESTATAL | G9: PROPIO | H9: TOTAL
B10: Cumplir con el plan de estudios a nivel Técnico Superior Universitario de 30 practica y 70% teoría. | C10: Documento | D10: 30% | E10: $10,000.00 | F10: $1,000.00 | G10: 0 | H10: =SUM(E10:G10) -> $11,000.00
A11: 29101 | B11: accesorios y materiales menores para laboratorio | E11: $10,000.00 | F11: $1,000.00 | G11: 0 | H11: =SUM(E11:G11) -> $11,000.00
A12: 40000 | B12: Realizar viajes de estudios | C12: Viajes | D12: 5 | E12: 0 | F12: 0 | G12: $49,000.00 | H12: $49,000.00
B13: Firma de convenios de colaboración con el sector productivo | C13: Convenios | D13: 40 | E13: 0 | F13: 0 | G13: $20,000.00 | H13: $20,000.00
A14: 37010 | B14: VIATICOS | E14: 0 | F14: 0 | G14: $20,000.00 | H14: $20,000.00
B15: Seguimiento al egresado a nivel Técnico Superior Universitario | C15: Documento | D15: 80% | E15: $136.00 | F15: $136.00 | G15: $4,228.00 | H15: $4,500.00
A16: 31500 | B16: TELEFONIA | E16: $136.00 | F16: 0 | G16: $2,332.61 | H16: $2,468.61
B17: Implementación de una bolsa de trabajo para nuestros egresados | C17: Documento | D17: 15% | E17: 0 | F17: 0 | G17: 0 | H17: 0
B18: Asegurar una mayor cobertura con respecto al egreso del nivel medio superior en la región, incrementando la cobertura en Técnico Superior Universitario. | C18: UNIDAD DE MEDIDA | D18: META 2020 | E18: FEDERAL | F18: ESTATAL | G18: PROPIO | H18: TOTAL
A19: 37010 | B19: Visitar 30 escuelas de nivel media superior de la región. | C19: informe | D19: 30 | E19: 0 | F19: $5,000.00 | G19: $16,000.00 | H19: $21,000.00
A20: 39910 | B20: Participar en las expo-profesionales que realizan las preparatorias de la región. | C20: informe | D20: 5 | E20: 0 | F20: 0 | G20: $20,000.00 | H20: $20,000.00
A21: 37010 | B21: Visitar puntos estratégicos de los nueve municipios de la región como plazas, tianguis y ferias. | C21: informe | D21: 9 | E21: 0 | F21: 0 | G21: $5,000.00 | H21: $5,000.00
B22: Atender el 100% de nuestros alumnos en tutorias por cuatrimestre | C22: porcentaje de alumnos attendidos | D22: 100 | E22: 0 | F22: 0 | G22: 0 | H22: 0
B23: Cumplir con las tutorias el 100% en cda cuatrimestre | C23: informe | D23: 3 | F23: 0 | G23: 0 | H23: 0
B24: Disminuir el abandono escolar, mejorando la eficiencia terminal y aumentar la tasa de transición en la continuidad de estudios a nivel Ingeniería. | C24: UNIDAD DE MEDIDA | D24: META 2020 | E24: FEDERAL | F24: ESTATAL | G24: PROPIO | H24: TOTAL
A25: 0 | B25: Implementación de tutorías y asesorías | C25: Documento | D25: 60 | E25: 0 | F25: 0 | G25: 0 | H25: 0
A26: 0 | B26: Atención alumnos vulnerables (académico, socioeconómico y psicológico) | C26: alumnos | D26: 20 | E26: 0 | F26: 0 | G26: 0 | H26: 0
A27: 0 | B27: Otorgar becas alimenticias por cuatrimestre alumnos en situación económica. | C27: alumnos | D27: 30 | E27: 0 | F27: 0 | G27: 0 | H27: 0
A28: 0 | B28: Otorgar becas de colegiatura alumnos destacados académicamente. | C28: alumnos | D28: 39 | E28: 0 | F28: 0 | G28: 0 | H28: 0
B29: Implementar programas de actividades culturales y deportivas diferenciados para atender las diversas necesidades de la población estudiantil. | C29: UNIDAD DE MEDIDA | D29: META 2020 | E29: FEDERAL | F29: ESTATAL | G29: PROPIO | H29: TOTAL
B30: Participar en el encuentro deportivo cultural de Universidades Tecnológicas | C30: Evento (Informe) | D30: 1 | E30: =SUM(E31:E34) -> $3,500.00 | F30: =SUM(F31:F34) -> $500.00 | G30: $75,328.77 | H30: =SUM(E30:G30) -> $79,328.77
A31: 22100 | B31: ALIMENTACION | E31: $3,500.00 | F31: $500.00 | G31: $15,914.39 | H31: =SUM(E31:G31) -> $19,914.39
A32: 44100 | B32: TRASPORTE | E32: 0 | F32: 0 | G32: $20,000.00 | H32: $20,000.00
A33: 27100 | B33: UNIFORME | E33: 0 | F33: 0 | G33: $11,414.38 | H33: $11,414.38
A34: 39910 | B34: ARBITRAJE | E34: 0 | F34: 0 | G34: $28,000.00 | H34: $28,000.00
B35: Integrar tres talleres: Un deportivo, un cultural y Artístico | C35: Talleres | D35: 3 | E35: =SUM(E36) -> $3,873.20 | F35: =SUM(F36) -> $2,873.20 | G35: 0 | H35: $6,746.40
A36: 27000 | B36: UNIFORMES TEXTIL | E36: $3,873.20 | F36: $2,873.20 | H36: $6,746.40
A37: 39910 | B37: Participar en eventos deportivos | C37: Evento (Informe) | D37: 4 | E37: 0 | F37: 0 | G37: $5,000.00 | H37: $5,000.00
A38: 39910 | B38: Participar en eventos culturales (Desfiles, culturales) | C38: Evento (Informe) | D38: 8 | E38: =SUM(E39:E41) -> $500.00 | F38: =SUM(F39:F41) -> $500.00 | G38: $17,500.00 | H38: $18,500.00
B39: DESFILES | E39: 0 | F39: 0 | G39: $7,500.00 | H39: $7,500.00
B40: SONIDO | E40: 0 | F40: 0 | G40: $10,000.00 | H40: $10,000.00
B41: TEXTIL | E41: $500.00 | F41: $500.00 | G41: 0 | H41: $1,000.00
A42: 39902 | B42: Realizar eventos internos como: aniversario, Día del TSU, presentación de proyectos | C42: Evento (Informe) | D42: 4 | E42: 0 | F42: 0 | G42: =SUM(G43:G47) -> $55,000.00 | H42: $55,000.00
A43: otros servicios generales | B43: DIA TSU | E43: 0 | F43: 0 | G43: $10,000.00 | H43: $10,000.00
B44: PREMIOS | E44: 0 | F44: 0 | G44: $7,500.00 | H44: $7,500.00
B45: ANIVERSARIO | E45: 0 | F45: 0 | G45: $20,000.00 | H45: $20,000.00
B46: PREMIOS | E46: 0 | F46: 0 | G46: $7,500.00 | H46: $7,500.00
B47: PRESENTACION DE PROYECTOS | E47: 0 | F47: 0 | G47: $10,000.00 | H47: $10,000.00
B48: Garantizar la equidad de genero e inculcar valores de convivencia mediante la ayuda de cursos de equidad de genero y sexualidad. | C48: UNIDAD DE MEDIDA | D48: META 2020 | E48: FEDERAL | F48: ESTATAL | G48: PROPIO | H48: TOTAL
B49: Realizar cursos de equidad de genero para todo el alumnado y personal que labora dentro de la Universidad. | C49: curso | D49: 6 | E49: 0 | F49: 0 | G49: $15,000.00 | H49: $15,000.00
B50: Atender y garantizar el respeto a la mujer en todos los servicios educativos que ofrece la Universidad. | C50: informe | D50: 3 | E50: 0 | F50: 0 | G50: 0 | H50: 0
B51: Iniciar los procesos de certificación en equidad de genero | C51: informe | D51: 2 | E51: 0 | F51: 0 | G51: 0 | H51: 0
B52: Implementar capacitaciones al personal docente y administrativo para el desarrollo de sus actividades encomendadas en la Universidad Tecnológica de la Tierra Caliente. | C52: UNIDAD DE MEDIDA | D52: META 2020 | E52: FEDERAL | F52: ESTATAL | G52: PROPIO | H52: TOTAL
A53: 36310 | B53: Participar en el 26 congreso de administración | C53: Evento (Informe) | D53: 1 | E53: 0 | F53: 0 | G53: $25,000.00 | H53: =SUM(E53:G53) -> $25,000.00
A54: 33400 | B54: Capacitar al personal docente en competencia educativas, certificaciones de office, | C54: curso | D54: 3 | E54: $17,500.00 | F54: $2,500.00 | G54: $2,001.00 | H54: =SUM(E54:G54) -> $22,001.00
A55: 33400 | B55: Capacitar al personal administrativo y docente en temas de liderazgo, trabajo en equipo, equidad, toma de decisiones, entre otros. | C55: curso | D55: 5
B56: Equipar por lo menos un laboratorio con equipos y herramientas de bajo costo para las prácticas de nuestros alumnos. | C56: UNIDAD DE MEDIDA | D56: META 2020 | E56: FEDERAL | F56: ESTATAL | G56: PROPIO | H56: TOTAL
A57: 21401 | B57: Suministrar con equipo informático el laboratorio de tecnologías | C57: Informe | D57: 2 | E57: $30,000.00 | F57: $1,999.00 | G57: 0 | H57: =SUM(E57:G57) -> $31,999.00
A58: 51500 | B58: Suministrar con tres proyectores para la carrera de administración y energías renovables. | C58: Informe | D58: 3 | G58: $25,000.00 | H58: =SUM(E58:G58) -> $25,000.00
A59: 51500 | B59: Adquirir una impresora 3D para la carrera de TIC-SI | C59: Informe | D59: 1 | E59: 0 | F59: 0
B60: Contar con una licencia de software para 380 egresados para concluir su trámite de titulación electrónica ante Dirección General de Profesiones. | C60: UNIDAD DE MEDIDA | D60: META 2020 | E60: FEDERAL | F60: ESTATAL | G60: PROPIO | H60: TOTAL
A61: 59000 | B61: Adquirir una licencia de Software para concluir el proceso de 380 egresados ante Dirección General de Profesiones | C61: Egresados | D61: 380 | E61: 0 | F61: 0 | G61: $56,000.00 | H61: $56,000.00
B62: Contar con una unidad automotriz para uso de comisiones del personal administrativo y docente, será usado para uso institucional. | C62: UNIDAD DE MEDIDA | D62: META 2020 | E62: FEDERAL | F62: ESTATAL | G62: PROPIO | H62: TOTAL
A63: 54000 | B63: Adquirir una unidad automotriz para comisiones administrativas. | C63: Automóvil | D63: 1 | E63: 0 | F63: 0 | G63: $160,000.00 | H63: $160,000.00
B64: Difundir y promocionar los servicios educativos de la Universidad Tecnológica de la Tierra Caliente, mediante los medios de comunicación en la región: Televisión, radio y periódico; así como el uso del internet y medios impresos. | C64: UNIDAD DE MEDIDA | D64: META 2020 | E64: FEDERAL | F64: ESTATAL | G64: PROPIO | H64: TOTAL
A65: 36000 | B65: Difusión en radio, periódico, televisión, internet y otros medios impresos | C65: Medio de difusión | D65: 45 | E65: $20,000.00 | F65: $12,000.00 | G65: $45,000.00 | H65: =SUM(E65:G65) -> $77,000.00
B66: Contar con material de oficina necesario para facilitar el trabajo del personal administrativo. | C66: UNIDAD DE MEDIDA | D66: META 2020 | E66: FEDERAL | F66: ESTATAL | G66: PROPIO | H66: TOTAL
A67: 21000 | B67: Contar con el material necesario de oficina para facilitar el trabajo en las áreas administrativas. | C67: Informe de material | D67: 100 | E67: $109,200.00 | F67: $20,499.00 | G67: $21,377.01 | H67: =SUM(E67:G67) -> $151,076.01
B68: Contar con los servicios generales básicos suficientes para mantener tres edificios de la Universidad Tecnológica como: agua, electricidad, internet, saneamiento, entre otros. | C68: UNIDAD DE MEDIDA | D68: META 2020 | E68: FEDERAL | F68: ESTATAL | G68: PROPIO | H68: TOTAL
A69: 31000 | B69: Contar con servicios generales básicos suficientes para mantener a los tres edificios en agua, electricidad, internet, saneamiento y otros. | C69: Informe de servicios | D69: 3 | E69: $379,536.00 | F69: $208,818.00 | G69: $63,075.61 | H69: =SUM(E69:G69) -> $651,429.61
B70: Total | E70: =SUM(E69,E51,E50,E49,E37,E20,E67,E65,E63,E61,E59,E58,E57,E55,E54,E53,E42,E38,E35,E30,E28,E27,E26,E25,E21,E19,E17,E15,E13,E12,E10,E7,E4,E3) -> $579,245.20 | F70: =SUM(F69,F51,F50,F49,F37,F20,F67,F65,F63,F61,F59,F58,F57,F55,F54,F53,F42,F38,F35,F30,F28,F27,F26,F25,F21,F19,F17,F15,F13,F12,F10,F7,F4,F3) -> $260,825.20 | G70: $679,510.39 | H70: =SUM(H69,H51,H50,H49,H37,H20,H67,H65,H63,H61,H59,H58,H57,H55,H54,H53,H42,H38,H35,H30,H28,H27,H26,H25,H21,H19,H17,H15,H13,H12,H10,H7,H4,H3) -> $1,519,580.79

Sheet PBR
B1: Avance en los Indicadores de los Programas presupuestarios de la UNIVERSIDAD TECNOLÓGICA DE LA TIERRA CALIENTE | J1: Ejercicio Fiscal 2020
B3: Datos del Programa
B4: Programa presupuestario | H4: Programa Operatico Anual 2020
B5: Unidad responsable | H5: Planeación
B6: Enfoques | H6: ser una institución de educación superior de vanguardia buscando con responsabilidad y calidad el reconocimiento social y considerada como detonante del desarrollo, académico, profesional, tecnológico y cultural; a través de nuestros egresados reconocidos por su formación integral, coadyuvando al progreso y desarrollo de nuestra región, estado y país.
B7: Alineación al Plan Nacional de Desarrollo 2013-2018
B8: Plan Nacional de Desarrollo 2019 - 2024
B9: 1. Política y gobierno, eje Garantizar el empleo, educación, salud y bienestar.
B10: Plan Estatal de Desarrollo
B11: Programa
B12: 3. Guerrero Socialmente Comprometido
B13: Objetivo
B14: 3.8. Impulsar la educación de calidad para todos. 3.9. Generar las condiciones necesarias para impulsar el desarrollo de una vida digna
B15: Estrategia
B16: Estrategia: 3.8.3. Garantizar que los planes y programas de estudio sean pertinentes y contribuyan a que los estudiantes avancen exitosamente en su trayectoria educativa, al tiempo que desarrollen aprendizajes significativos y competencias que le sirvan al árbol de la vida; estrategia 3.8.5. Disminuir la deserción escolar y fomentar la conclusión de los estudios en sus diferentes niveles. Estrategia 3.9.1. Colocar a la cultura como un elemento prioritario para el desarrollo integral de los guerrerenses; y estrategia 3.9.5. Diseñar programas de actividad física y deportiva para atender las necesidades de la población.
B17: Línea de Acción: Fomentar desde la educación básica los conocimientos, las habilidades y las aptitudes que estimulen la investigación y la innovación científicas y tecnológicas. Ampliar y fortalecer la operaciones de los sistemas de apoyo tutorial, con el fin de reducir los niveles de deserción de los estudiantes y favorecer la conclusión oportuna de sus estudios. Asegurar que a cultura se integre al proceso educativo de la población en sus tiempos libres y de recreación como una forma de acrecentar los valores, las costumbres, el deporte, los derechos, la equidad de género, y la ciudadanía. Promover la práctica deportiva con un enfoque que fomente los valores como el trabajo en equipo, el respeto a las reglas y la obtención del éxito mediante el esfuerzo individual y colectivo.
B18: Clasificación Funcional
B19: Finalidad (Fin) | E19: Ser una Universidad Tecnologica reconocida por la sociedad y considerada como detonante del desarrollo, académico, profesional, tecnológico y cultural; a través de nuestros egresados reconocidos por su formación integral, coadyuvando al progreso y desarrollo de nuestra región, estado y país.
B20: Función(Proposito) | E20: La Universidad Tecnológica de la Tierra Caliente sea la primara opción de estudios para jóvenes que están a punto de concluir sus estudios a nivel media superior.
B21: Subfunción | E21: Mejorar la calidad educativa de la Universidad Tecnológica de la Tierra Caliente y potencializar el desarrollo profesional de nuestros alumnos.
B22: Actividad Institucional | E22: Servicio educativo de calidad, logrando el recocimiento de la sociedad.
B23: Presupuesto
H24: Avance trimestral ejercidó | L24: Avance trimestral del presupuesto
B25: Presupesto Federal | D25: Presupuesto Estatal | E25: Presupuesto ingresos propios | F25: Presupuesto total | H25: enero . Marzo | I25: Abril - junio | J25: julio - septiembre | K25: octubre - diciembre | L25: enero . Marzo | M25: Abril - junio | N25: julio - septiembre | O25: octubre - diciembre
B26: $4,269,209.00 | D26: $5,588,700.00 | E26: $2,000,000.00 | F26: =SUM(B26:E26) -> $11,857,909.00
B27: Presupesto Federal Modificado | D27: Presupuesto Estatal Modificado | E27: Presupuesto ingresos propios Modificado | F27: Presupuesto total Modificado | H27: enero . Marzo | I27: Abril - junio | J27: julio - septiembre | K27: octubre - diciembre | L27: enero . Marzo | M27: Abril - junio | N27: julio - septiembre | O27: octubre - diciembre
B29: num | C29: Nombre y descripción de la obra y/o accion. | D29: Nombre del indicador | E29: Metodo de calculo | F29: Cantidad | G29: Calendario trimestral de metas | K29: Calendario del gasto trimestral | O29: previsión del gasto
G30: enero . Marzo | H30: Abril - junio | I30: julio - septiembre | J30: octubre - diciembre | K30: enero . Marzo | L30: Abril - junio | M30: julio - septiembre | N30: octubre - diciembre
C31: Garantizar que los planes y programas de estudios sean pertinentes y contribuyan a que los estudiantes puedan avanzar exitosamente en su trayectoria educativa, al tiempo que desarrollen aprendizajes significativos y competencias que les sirvan a lo largo de la vida. | D31: Porcentaje de programas educativos pertinente | E31: (Total de programas educativos/ total de programas educativos pertinentes) *100 | F31: 3 | G31: 0 | H31: 0 | I31: 1 | J31: 2 | K31: 0 | L31: =SUM(L32:L34) -> $5,000.00 | M31: =SUM(M32:M34) -> $5,000.00 | N31: 0 | O31: =SUM(K31:N31) -> $10,000.00
C32: Estudios de factibilidad de los programas educativos | D32: Porcentaje de estudios de factibilidad elaborados | E32: (Total de estudios de factibilidad elaborados/ total de estudios de factibilidad programados) *100 | F32: 3 | H32: 1 | I32: 2 | J32: 0 | K32: 0 | L32: $3,000.00 | M32: $3,000.00 | N32: 0 | O32: =SUM(K32:N32) -> $6,000.00
C33: Análisis Situacional del Trabajo (AST) con ayuda del comité de pertinencia | D33: Porcentaje de AST aprobados por el comité | E33: (Total de AST aprobados/total de programas educativos)*100 | F33: 3 | G33: 0 | H33: 0 | I33: 1 | J33: 2 | K33: 0 | L33: $1,500.00 | M33: $1,500.00 | N33: 0 | O33: =SUM(K33:N33) -> $3,000.00
C34: Aprobación de los programas educativos por parte del comité de pertinencia | D34: Porcentaje de programas educativos pertinente | E34: (Total de programas educativos/ total de programas educativos pertinentes) *100 | F34: 3 | G34: 0 | H34: 0 | I34: 1 | J34: 2 | K34: 0 | L34: $500.00 | M34: $500.00 | N34: 0 | O34: =SUM(K34:N34) -> $1,000.00
C35: Formar Profesionistas capacitados para el desarrollo de sus actividades y posicionar a los egresados en el sector productivo. | D35: Porcentaje de cumplimiento de los planes de estudios | E35: Total de los planes de estudios cumplidos/total del plan de estudios)*100 | F35: 30 | G35: 30 | H35: 30 | I35: 30 | K35: =SUM(K36:K40) -> $5,000.00 | L35: =SUM(L36:L40) -> $21,000.00 | M35: =SUM(M36:M40) -> $32,500.00 | N35: =SUM(N36:N40) -> $26,000.00 | O35: =SUM(O36:O40) -> $84,500.00
C36: Cumplir con el plan de estudios a nivel Técnico Superior Universitario de 70 practica y 30% teoría. | D36: Porcentaje de prácticas realizadas | E36: Total de prácticas realizadas/ total de prácticas programadas)*100 | F36: 30 | H36: 30 | I36: 30 | J36: 30 | L36: $5,000.00 | M36: $6,000.00 | O36: =SUM(K36:N36) -> $11,000.00
C37: Realizar viajes de estudios | D37: Porcentaje de viajes de estudios | E37: Total de viajes de estudios realizados/ total de matrícula atendida)*100 | F37: 5 | G37: 1 | H37: 1 | I37: 2 | J37: 1 | L37: $10,000.00 | M37: $19,000.00 | N37: $20,000.00 | O37: =SUM(K37:N37) -> $49,000.00
C38: Firma de convenios de colaboración con el sector productivo | D38: Porcentaje de convenios firmados | E38: Total de convenios firmados/total de convenios programados)*100 | F38: 40 | G38: 10 | H38: 10 | I38: 10 | J38: 10 | K38: $5,000.00 | L38: $5,000.00 | M38: $5,000.00 | N38: $5,000.00 | O38: =SUM(K38:N38) -> $20,000.00
C39: Seguimiento al egresado a nivel Técnico Superior Universitario | D39: Porcentaje de egresados encontrados | E39: Total de egresados/ total de egresados encontrados)*100 | F39: 80% | G39: 0 | H39: 80% | I39: 80% | J39: 0 | K39: 0 | L39: $1,000.00 | M39: $2,500.00 | N39: $1,000.00 | O39: =SUM(K39:N39) -> $4,500.00
C40: Implementación de una bolsa de trabajo para nuestros egresados | D40: Porcentaje de egresados colocados con ayuda de la bolsa de trabajo. | E40: (total de egresados/Total de egresados colocados por la bolsa de trabajo de UT)*100 | F40: 15% | G40: 0 | H40: 15% | I40: 15% | J40: 0 | K40: 0 | L40: 0 | M40: 0 | N40: 0 | O40: =SUM(K40:N40) -> 0
C41: Asegurar una mayor cobertura con respecto al egreso del nivel medio superior en la región, incrementando la cobertura en Técnico Superior Universitario. | D41: Porcentaje de alumnos de nuevo ingreso | E41: (Total de alumnos de nuevo ingreso/Total de alumnos programados)*100 | F41: 225 | G41: 0 | H41: 0 | I41: 225 | J41: 0 | K41: =SUM(K42:K44) -> $22,000.00 | L41: =SUM(L42:L44) -> $17,000.00 | M41: =SUM(M42:M44) -> $7,000.00 | N41: =SUM(N42:N44) -> 0 | O41: =SUM(K41:N41) -> $46,000.00
C42: Visitar 30 escuelas de nivel media superior de la región. | D42: Porcentaje de escuelas visitadas | E42: (Total de escuelas visitadas/total de escuelas programadas)*100 | F42: 30 | G42: 5 | H42: 15 | I42: 10 | J42: 0 | K42: $6,000.00 | L42: $10,000.00 | M42: $5,000.00 | N42: 0 | O42: $21,000.00
C43: Participar en las expo-profesionales que realizan las preparatorias de la región. | D43: Porcentaje de expo-profesionales | E43: Total de participaciones en expo-profesionales/total de preparatorias en la región)*100 | F43: 5 | G43: 5 | H43: 0 | I43: 0 | J43: 0 | K43: $16,000.00 | L43: $4,000.00 | M43: 0 | N43: 0 | O43: $20,000.00
C44: Visitar puntos estratégicos de los nueve municipios de la región como plazas, tianguis y ferias. | D44: Porcentaje de visitas realizadas | E44: (Total de alumnos inscritos con elección de visitas en plazas/total de lugares visitados)*100 | F44: 9 | G44: 0 | H44: 5 | I44: 4 | J44: 0 | K44: 0 | L44: $3,000.00 | M44: $2,000.00 | N44: 0 | O44: $5,000.00
C45: Atender el 100% de nuestros alumnos en tutorias por cuatrimestre | D45: Porcentaje de alumnos atendidos | E45: Total de alumnos, por total de alumnos atendidos | F45: 100% | H45: 100 | I45: 100 | J45: 100 | K45: 0 | L45: 0 | M45: 0 | N45: 0 | O45: 0
C46: Cumplir con las tutorias el 100% en cda cuatrimestre | F46: 3 | H46: 1 | I46: 1 | J46: 1 | K46: 0 | L46: 0 | M46: 0 | N46: 0 | O46: 0
C47: Disminuir el abandono escolar, mejorando la eficiencia terminal y aumentar la tasa de transición en la continuidad de estudios a nivel Ingeniería. | D47: Porcentaje de deserción escolar | E47: (total de matrícula a inicio de cuatrimestre/ total de matrícula a final de cuatrimestre)*100 | F47: 8% | G47: 8% | H47: 8% | I47: 8% | J47: 8% | K47: 0 | L47: 0 | N47: 0 | O47: 0
C48: Implementación de tutorías y asesorías | D48: Porcentaje de tutorías y asesorías realizadas | E48: (total de tutorías y asesorías programadas/total de asesorías y tutorías realizadas)*100 | F48: 3 | G48: 0 | H48: 1 | I48: 1 | J48: 1 | K48: 0 | L48: 0 | N48: 0 | O48: 0
C49: Atención alumnos vulnerables (académico, socioeconómico y psicológico) | D49: Porcentaje de alumnos vulnerables atendidos | E49: (Total de alumnos vulnerables/Total de alumnos vulnerables atendidos)*100 | F49: 450 | H49: 100 | I49: 100 | J49: 250 | K49: 0 | L49: 0 | N49: 0 | O49: 0
C50: Otorgar becas alimenticias por cuatrimestre alumnos en situación económica. | D50: Porcentaje de becas otorgadas | E50: Total de alumnos vulnerables/Total de becas otorgadas)*100 | F50: 30 | G50: 10 | H50: 10 | I50: 10 | J50: 0 | K50: 0 | L50: 0 | N50: 0 | O50: 0
C51: Otorgar becas de colegiatura alumnos destacados académicamente. | D51: Porcentaje de becas otorgadas por promedio | E51: (total de matrícula cuatrimestral/ total de alumnos becados)*100 | F51: 180% | G51: 60% | H51: 60% | I51: 60% | J51: 0 | K51: 0 | L51: 0 | N51: 0 | O51: =SUM(K51:N51) -> 0
C52: Implementar programas de actividades culturales y deportivas diferenciados para atender las diversas necesidades de la población estudiantil. | D52: Porcentaje de eventos realizados | E52: (total de eventos realizados/total de participación del alumnado)*100 | F52: 95% | G52: 95% | H52: 95% | I52: 95% | J52: 95% | K52: =SUM(K53:K57) -> $84,328.77 | L52: =SUM(L53:L57) -> $26,873.20 | M52: =SUM(M53:M57) -> $35,873.20 | N52: =SUM(N53:N57) -> $17,500.00 | O52: =SUM(K52:N52) -> $164,575.17
C53: Participar en el encuentro deportivo cultural de Universidades Tecnológicas | D53: Participar en el evento deportivo de UT¨s | E53: (Total de alumnos participante/total de selecciones)*100 | F53: 1 | G53: 1 | H53: 0 | I53: 0 | J53: 0 | K53: $79,328.77 | L53: 0 | M53: 0 | N53: 0 | O53: =SUM(K53:N53) -> $79,328.77
C54: Integrar tres talleres: Un deportivo, un cultural y Artístico | D54: Porcentaje de alumnos que participan en los talleres | E54: (total de alumnos participante en los talleres/total de alumnos inscritos)*100 | F54: 3 | G54: 0 | H54: 1 | I54: 2 | J54: 0 | K54: 0 | L54: $3,873.20 | M54: $2,873.20 | N54: 0 | O54: $6,746.40
C55: Participar en eventos deportivos | D55: Porcentaje de eventos deportivos realizados | E55: (total de eventos realizados/total de eventos programados)*100 | F55: 4 | G55: 0 | H55: 2 | I55: 2 | J55: 0 | K55: 0 | L55: $2,500.00 | M55: $2,500.00 | N55: 0 | O55: $5,000.00
C56: Participar en eventos culturales (Desfiles, culturales) | D56: Porcentaje de eventos culturales realizados | E56: (total de eventos culturales realizados/total de alumnos participante)*100 | F56: 8 | G56: 2 | H56: 1 | I56: 1 | J56: 2 | K56: $5,000.00 | L56: $3,000.00 | M56: $3,000.00 | N56: $7,500.00 | O56: $18,500.00
C57: Realizar eventos internos como: aniversario, Día del TSU, presentación de proyectos | D57: Porcentaje de eventos internos realizados | E57: (Total de eventos internos realizados/Total de eventos programados)*100 | F57: 4 | G57: 0 | H57: 1 | I57: 2 | J57: 1 | K57: 0 | L57: $17,500.00 | M57: $27,500.00 | N57: $10,000.00 | O57: $55,000.00
C58: Garantizar la equidad de genero e inculcar valores de convivencia mediante la ayuda de cursos de equidad de genero y sexualidad. | D58: Porcentaje de alumnos atendidos | E58: (total de alumnos por total de alumnos atendidos) | F58: 100% | G58: 100 | H58: 100 | I58: 100
C59: Realizar cursos de equidad de genero para todo el alumnado y personal que labora dentro de la Universidad. | D59: Porcentaje de cursos realizados | E59: Total de alumnos participante en los cursos por cursos realizados | F59: 6 | G59: 2 | I59: 2 | J59: 2
C60: Atender y garantizar el respeto a la mujer en todos los servicios educativos que ofrece la Universidad. | D60: Porcentaje de alumnos atendidos por matricula total | E60: (total de alumnos por total de alumnos atendidos) | F60: 3 | H60: 1 | I60: 1 | J60: 1
C61: Iniciar los procesos de certificación en equidad de genero | D61: Requisitos realizados | E61: Certificacion lograda o no. | F61: 1 | I61: 1 | J61: 1
C62: Implementar capacitaciones al personal docente y administrativo para el desarrollo de sus actividades encomendadas en la Universidad Tecnológica de la Tierra Caliente. | D62: Porcentaje de eventos realizados | E62: (Total de personal capacitado/Total de eventos realizados)*100 | F62: 100% | H62: 100% | I62: 100% | J62: 100% | K62: =SUM(K63:K65) -> 0 | L62: =SUM(L63:L65) -> $5,000.00 | M62: =SUM(M63:M65) -> $35,000.00 | N62: =SUM(N63:N65) -> $7,001.00 | O62: $47,001.00
C63: Participar en el 26 congreso de administración | D63: Porcentaje de participación de nuestros profesores. | E63: (Total de profesores participante de la UT/ total de profesores que asistieron)*100 | F63: 1 | G63: 0 | H63: 0 | I63: 1 | J63: 0 | K63: 0 | M63: $25,000.00 | N63: 0 | O63: $25,000.00
C64: Capacitar al personal docente en competencia educativas, certificaciones de office, | D64: Porcentaje de profesores capacitados | E64: (Total de profesores/ Total de profesores capacitados)*100 | F64: 3 | G64: 0 | H64: 1 | I64: 1 | J64: 1 | K64: 0 | L64: $5,000.00 | M64: $10,000.00 | N64: $7,001.00 | O64: $22,001.00
C65: Capacitar al personal administrativo y docente en temas de liderazgo, trabajo en equipo, equidad, toma de decisiones, entre otros. | D65: Porcentaje de personal capacitado | E65: (Total de personal/Total de personal capacitado)/*100 | F65: 5 | G65: 0 | H65: 1 | I65: 2 | J65: 2 | K65: 0
C66: Equipar por lo menos un laboratorio con equipos y herramientas de bajo costo para las prácticas de nuestros alumnos. | D66: Porcentaje de prácticas de laboratorio | E66: (Total de prácticas realizadas/Total de prácticas programadas)*100 | F66: 35% | G66: 0 | H66: 35% | I66: 35% | J66: 0 | K66: =SUM(K67:K69) -> 0 | L66: =SUM(L67:L69) -> 0 | M66: =SUM(M67:M69) -> $35,000.00 | N66: =SUM(N67:N69) -> $21,999.00 | O66: $56,999.00
C67: Suministrar con equipo informático el laboratorio de tecnologías | D67: Porcentaje de prácticas de laboratorio | E67: (Total de prácticas realizadas/Total de prácticas programadas)*100 | F67: 2 | G67: 1 | H67: 0 | I67: 1 | J67: 0 | K67: 0 | M67: $20,000.00 | N67: $11,999.00 | O67: $31,999.00
C68: Suministrar con tres proyectores para la carrera de administración y energías renovables. | D68: Porcentaje de prácticas de laboratorio | E68: (Total de prácticas realizadas/Total de prácticas programadas)*100 | F68: 3 | G68: 0 | H68: 1 | I68: 2 | J68: 0 | K68: 0 | M68: $15,000.00 | N68: 0 | O68: $15,000.00
C69: Adquirir una impresora 3D para la carrera de TIC-SI | D69: Porcentaje de prácticas de laboratorio | E69: (Total de prácticas realizadas/Total de prácticas programadas)*100 | F69: 1 | G69: 0 | H69: 1 | I69: 0 | J69: 0 | K69: 0 | M69: 0 | N69: $10,000.00 | O69: $10,000.00
C70: Contar con una licencia de software para 380 egresados para concluir su trámite de titulación electrónica ante Dirección General de Profesiones. | D70: Porcentaje de titulados con cedula profesional | E70: Total de egresados/Total de egresados titulados)*99 | F70: 380 | G70: 70 | H70: 100 | I70: 100 | J70: 110 | K70: $9,000.00 | L70: $15,000.00 | M70: $15,000.00 | N70: $17,000.00 | O70: $56,000.00
C71: Adquirir una licencia de Software para concluir el proceso de 380 egresados ante Dirección General de Profesiones | D71: Porcentaje de titulados con cedula profesional | E71: Total de egresados/Total de egresados titulados)*100 | F71: 380 | G71: 70 | H71: 100 | I71: 100 | J71: 110 | K71: $9,000.00 | L71: $15,000.00 | M71: $15,000.00 | N71: $17,000.00 | O71: $56,000.00
C72: Contar con una unidad automotriz para uso de comisiones del personal administrativo y docente, será usado para uso institucional. | D72: Porcentaje de ahorro en viáticos (Gasolina) | E72: (Total de viáticos programado/Total de viáticos gastados)*99 | F72: 1 | G72: 0 | H72: 1 | I72: 0 | J72: 0 | K72: 0 | L72: 0 | M72: 0 | N72: $160,000.00 | O72: $160,000.00
C73: Adquirir una unidad automotriz para comisiones administrativas. | D73: Porcentaje de ahorro en viáticos (Gasolina) | E73: (Total de viáticos programado/Total de viáticos gastados)*100 | F73: 1 | G73: 0 | H73: 1 | I73: 0 | J73: 0 | K73: 0 | L73: 0 | M73: 0 | N73: $160,000.00 | O73: $160,000.00
C74: Difundir y promocionar los servicios educativos de la Universidad Tecnológica de la Tierra Caliente, mediante los medios de comunicación en la región: Televisión, radio y periódico; así como el uso del internet y medios impresos. | D74: Porcentaje de medios de difusión realizados | E74: (Total de alumnos inscritos de nuevo ingreso/Total de alumnos inscritos de nuevo ingreso por elección de difusión en radio)*100 | F74: 45 | G74: 10 | H74: 20 | I74: 15 | J74: 0 | K74: $15,000.00 | L74: $30,000.00 | M74: $22,000.00 | N74: $10,000.00 | O74: $77,000.00
C75: Difusión en radio, periódico, televisión, internet y otros medios impresos | D75: Porcentaje de medios de difusión realizados | E75: (Total de medios de difusión realizados/Total de medios de comunicación programados)*100 | F75: 45 | G75: 10 | H75: 20 | I75: 15 | J75: 0 | K75: $15,000.00 | L75: $30,000.00 | M75: $22,000.00 | N75: $10,000.00 | O75: $77,000.00
C76: Contar con material de oficina necesario para facilitar el trabajo del personal administrativo. | D76: Porcentaje de ahorro de material de suministro | E76: (Total de suministros programados/Total de suministros gastados)*100 | F76: 100% | G76: 100% | H76: 100% | I76: 100% | J76: 100% | K76: $35,000.00 | L76: $40,000.00 | M76: $41,076.01 | N76: $35,000.00 | O76: $151,076.01
C77: Contar con el material necesario de oficina para facilitar el trabajo en las áreas administrativas. | D77: Porcentaje de ahorro de material de suministro | E77: (Total de suministros programados/Total de suministros gastados)*100 | F77: 100% | G77: 100% | H77: 100% | I77: 100% | J77: 100% | K77: $35,000.00 | L77: $40,000.00 | M77: $41,076.01 | N77: $35,000.00 | O77: $151,076.01
C78: Contar con los servicios generales básicos suficientes para mantener tres edificios de la Universidad Tecnológica como: agua, electricidad, internet, saneamiento, entre otros. | D78: Porcentaje de ahorro de servicios generales básicos | E78: (Total de servicios básicos programados/Total de servicios generales gastados)*100 | F78: 100% | G78: 100% | H78: 100% | I78: 100% | J78: 100% | K78: $160,000.00 | L78: $165,500.00 | M78: $165,929.61 | N78: $160,000.00 | O78: $651,429.61
C79: Contar con servicios generales básicos suficientes para mantener a los tres edificios en agua, electricidad, internet, saneamiento y otros. | D79: Porcentaje de ahorro de servicios generales básicos | E79: (Total de servicios básicos programados/Total de servicios generales gastados)*100 | F79: 100% | G79: 100% | H79: 100% | I79: 100% | J79: 100% | K79: $160,000.00 | L79: $165,500.00 | M79: $165,929.61 | N79: $160,000.00 | O79: $651,429.61
B80: Justificación de diferencia de avances con respecto a las metas programadas
B81: 1.- Garantizar que los planes y programas de estudios sean pertinentes y contribuyan a que los estudiantes puedan avanzar exitosamente en su trayectoria educativa, al tiempo que desarrollen aprendizajes significativos y competencias que les sirvan a lo largo de la vida.
B82: Causa: | D82: El poco interés del sector productivo en la participación del Comité de pertinencia.
B83: Efecto: | D83: Que no se integre el comité de pertinencia, y no se garantice la pertinencia de los programas educativos que oferta la UTTC.
B84: Otros Motivos: | D84: No cumplir con los estudios de factibilidad o que estos mismos no tenga los resultados esperados.
B85: 2.- Formar Profesionistas capacitados para el desarrollo de sus actividades y posicionar a los egresados en el sector productivo.
B86: Causa: | D86: No cumplir con los planes de estudios de cada programa educativo a nivel Técnico Superior Universitario
B87: Efecto: | D87: No garantizar el servicio educativo
B88: Otros Motivos: | D88: No cumplir con los procesos de enseñanza aprendizaje.
B89: 3.- Asegurar una mayor cobertura con respecto al egreso del nivel medio superior en la región, incrementando la cobertura en Técnico Superior Universitario.
B90: Causa: | D90: Que la Universidad Tecnológica de la Tierra Caliente no sea una opción de estudios para futuros egresados de nivel media superior.
B91: Efecto: | D91: No contar con alumnos de nuevo ingreso.
B92: Otros Motivos: | D92: Que la mayoría de nuestros programas educativos no sean los adecuados a las necesidades del sector.
B93: 4.- Disminuir el abandono escolar, mejorando la eficiencia terminal y aumentar la tasa de transición en la continuidad de estudios a nivel Ingeniería.
B94: Causa: | D94: Que alumnos con situaciones vulnerables deserten
B95: Efecto: | D95: Alto índice de deserción escolar.
B96: Otros Motivos: | D96: Que alumnos de nuevo ingreso que tome como última opción a la Universidad sean los primeros en abandonar sus estudios.
B97: 5.- Implementar programas de actividades culturales y deportivas diferenciados para atender las diversas necesidades de la población estudiantil.
B98: Causa: | D98: Poca participación del alumnado
B99: Efecto: | D99: Que no exista una integración en los talleres
B100: Otros Motivos: | D100: No participar en eventos culturales
B101: 6.- Implementar capacitaciones al personal docente y administrativo para el desarrollo de sus actividades encomendadas en la Universidad Tecnológica de la Tierra Caliente.
B102: Causa: | D102: Que el personal docente y administrativo no participe en los cursos
B103: Efecto: | D103: Que sigan existiendo problemáticas de trabajo en equipo.
B104: Otros Motivos:
B105: 7.-Equipar por lo menos un laboratorio con equipos y herramientas de bajo costo para las prácticas de nuestros alumnos.
B106: Causa: | D106: No contar con equipo y herramienta necesaria
B107: Efecto: | D107: No cumplir con los planes de estudios de cada programa educativo a nivel Técnico Superior Universitario
B108: Otros Motivos:
B109: 8.-Contar con una licencia de software para 380 egresados para concluir su trámite de titulación electrónica ante Dirección General de Profesiones.
B110: Causa: | D110: No dar seguimiento al proceso de titulación de nuestras generaciones
B111: Efecto: | D111: Problemas legales con el alumnado y SEP
B112: Otros Motivos: | D112: Prestigio Universitario
B113: 9.-Contar con una unidad automotriz para uso de comisiones del personal administrativo y docente, será usado para uso institucional.
B114: Causa: | D114: Que existan más gastos de viáticos durante el año
B115: Efecto: | D115: Gasto en gasolina alto
B116: Otros Motivos:
B117: 10.-Difundir y promocionar los servicios educativos de la Universidad Tecnológica de la Tierra Caliente, mediante los medios de comunicación en la región: Televisión, radio y periódico; así como el uso del internet y medios impresos.
B118: Causa: | D118: Que aun así no se logre superar nuestra meta de matrícula de nuevo ingreso de 225
B119: Efecto: | D119: Baja matricula y menos presupuesto para el año 2021
B120: Otros Motivos:
B121: 11.-Contar con material de oficina necesario para facilitar el trabajo del personal administrativo.
B122: Causa: | D122: No cumplir con las responsabilidades administrativas por causa de material de oficina.
B123: Efecto: | D123: Malos resultados administrativos.
B124: Otros Motivos: | D124: Tiempo de respuesta tardío
B125: 12.-Contar con los servicios generales básicos suficientes para mantener tres edificios de la Universidad Tecnológica como: agua, electricidad, internet, saneamiento, entre otros.
B126: Causa: | D126: Que no exista un ahorro de servicios básicos
B127: Efecto: | D127: Que exista un mal servicio basico.
B128: Otros Motivos: | D128: Gasto excesivo, por no ahorrar servicios básicos.

Sheet CALENDARIO
A1: Procesos
A2: Garantizar que los planes y programas de estudios sean pertinentes y contribuyan a que los estudiantes puedan avanzar exitosamente en su trayectoria educativa, al tiempo que desarrollen aprendizajes significativos y competencias que les sirvan a lo largo de la vida.
A3: año 2020 | B3: ENE | C3: FEB | D3: MAR | E3: ABR | F3: MAY | G3: JUN | H3: JUL | I3: AGO | J3: SEP | K3: OCT | L3: NOV | M3: DIC
A4: Elaborar estudios de factibilidad de los programas educativos en Gastronomía, Mecanica y Tecnológias de la Información. | G4: 1 | I4: 1 | J4: 1
A5: Elaboracion del Análisis Situacional del Trabajo (AST) con ayuda del comité de pertinencia | H5: 1 | K5: 1 | L5: 1
A6: Aprobación de los programas educativos por parte del comité de pertinencia | H6: 1 | K6: 1 | L6: 1
A7: Formar Profesionistas capacitados para el desarrollo de sus actividades y posicionar a los egresados en el sector productivo.
A8: año 2020 | B8: ENE | C8: FEB | D8: MAR | E8: ABR | F8: MAY | G8: JUN | H8: JUL | I8: AGO | J8: SEP | K8: OCT | L8: NOV | M8: DIC
A9: Cumplir con el plan de estudios a nivel Técnico Superior Universitario de 70 practica y 30% teoría. | D9: 30 | G9: 30 | J9: 30 | M9: 30
A10: Realizar viajes de estudios | C10: 1 | E10: 1 | H10: 1 | J10: 1 | K10: 1
A11: Firma de convenios de colaboración con el sector productivo | B11: 5 | C11: 3 | D11: 2 | E11: 3 | F11: 4 | G11: 3 | H11: 5 | I11: 3 | J11: 2 | K11: 3 | L11: 4 | M11: 3
A12: Seguimiento al egresado a nivel Técnico Superior Universitario | G12: 80% | J12: 80%
A13: Implementación de una bolsa de trabajo para nuestros egresados | G13: 15% | J13: 15%
A14: Asegurar una mayor cobertura con respecto al egreso del nivel medio superior en la región, incrementando la cobertura en Técnico Superior Universitario.
A15: año 2020 | B15: ENE | C15: FEB | D15: MAR | E15: ABR | F15: MAY | G15: JUN | H15: JUL | I15: AGO | J15: SEP | K15: OCT | L15: NOV | M15: DIC
A16: Visitar 30 escuelas de nivel media superior de la región. | C16: 5 | E16: 10 | F16: 5 | H16: 5 | I16: 5
A17: Participar en las expo-profesionales que realizan las preparatorias de la región. | C17: 5
A18: Visitar puntos estratégicos de los nueve municipios de la región como plazas, tianguis y ferias. | E18: 2 | F18: 2 | G18: 1 | H18: 2 | I18: 2
A19: Atender el 100% de nuestros alumnos en tutorias por cuatrimestre | E19: 100 | I19: 100 | M19: 100
A20: Cumplir con las tutorias el 100% en cda cuatrimestre | E20: 100 | I20: 100 | M20: 100
A21: Disminuir el abandono escolar, mejorando la eficiencia terminal y aumentar la tasa de transición en la continuidad de estudios a nivel Ingeniería.
A22: año 2020 | B22: ENE | C22: FEB | D22: MAR | E22: ABR | F22: MAY | G22: JUN | H22: JUL | I22: AGO | J22: SEP | K22: OCT | L22: NOV | M22: DIC
A23: Llevar a cabo los programas tutorías y asesorías | E23: 1 | I23: 1 | M23: 1%
A24: Atención alumnos vulnerables (académico, socioeconómico y psicológico) | E24: 100 | I24: 100 | M24: 100%
A25: Otorgar becas alimenticias por cuatrimestre alumnos en situación económica. | B25: 10 | F25: 10 | J25: 10
A26: Otorgar becas de colegiatura alumnos destacados académicamente. | D26: 60% | G26: 60% | K26: 60%
A27: Implementar programas de actividades culturales y deportivas diferenciados para atender las diversas necesidades de la población estudiantil.
A28: año 2020 | B28: ENE | C28: FEB | D28: MAR | E28: ABR | F28: MAY | G28: JUN | H28: JUL | I28: AGO | J28: SEP | K28: OCT | L28: NOV | M28: DIC
A29: Participar en el encuentro deportivo cultural de Universidades Tecnológicas | C29: 1
A30: Integrar tres talleres: Un deportivo, un cultural y Artístico | E30: 1 | G30: 1 | I30: 1
A31: Participar en eventos deportivos | E31: 1 | G31: 1 | I31: 1 | J31: 1
A32: Participar en eventos culturales (Desfiles, culturales) | B32: 1 | C32: 1 | E32: 1 | G32: 1 | J32: 1 | L32: 2 | M32: 1
A33: Realizar eventos internos como: aniversario, Día del TSU, presentación de proyectos | G33: 1 | J33: 1 | K33: 1 | M33: 1
A34: Garantizar la equidad de genero e inculcar valores de convivencia mediante la ayuda de cursos de equidad de genero y sexualidad.
A35: año 2020 | B35: ENE | C35: FEB | D35: MAR | E35: ABR | F35: MAY | G35: JUN | H35: JUL | I35: AGO | J35: SEP | K35: OCT | L35: NOV | M35: DIC
A36: Realizar cursos de equidad de genero para todo el alumnado y personal que labora dentro de la Universidad. | C36: 1 | D36: 1 | H36: 1 | I36: 1 | K36: 1 | L36: 1
A37: Atender y garantizar el respeto a la mujer en todos los servicios educativos que ofrece la Universidad. | F37: 1 | I37: 1 | M37: 1
A38: Iniciar los procesos de certificación en equidad de genero | I38: 1 | L38: 1
A39: Implementar capacitaciones al personal docente y administrativo para el desarrollo de sus actividades encomendadas en la Universidad Tecnológica de la Tierra Caliente.
A40: AÑO 2020 | B40: ENE | C40: FEB | D40: MAR | E40: ABR | F40: MAY | G40: JUN | H40: JUL | I40: AGO | J40: SEP | K40: OCT | L40: NOV | M40: DIC
A41: Participar en el 26 congreso de administración | I41: 1
A42: Capacitar al personal docente en competencia educativas, certificaciones de office, | E42: 1 | I42: 1 | M42: 1
A43: Capacitar al personal administrativo y docente en temas de liderazgo, trabajo en equipo, equidad, toma de decisiones, entre otros. | E43: 1 | I43: 2 | M43: 2
A44: Equipar por lo menos un laboratorio con equipos y herramientas de bajo costo para las prácticas de nuestros alumnos.
A45: AÑO 2020 | B45: ENE | C45: FEB | D45: MAR | E45: ABR | F45: MAY | G45: JUN | H45: JUL | I45: AGO | J45: SEP | K45: OCT | L45: NOV | M45: DIC
A46: Suministrar con equipo informático el laboratorio de tecnologías | D46: 1 | H46: 1
A47: Suministrar con tres proyectores para la carrera de administración y energías renovables. | F47: 1 | H47: 2
A48: Adquirir una impresora 3D para la carrera de TIC-SI | G48: 1
A49: Contar con una licencia de software para 380 egresados para concluir su trámite de titulación electrónica ante Dirección General de Profesiones.
A50: AÑO 2020 | B50: ENE | C50: FEB | D50: MAR | E50: ABR | F50: MAY | G50: JUN | H50: JUL | I50: AGO | J50: SEP | K50: OCT | L50: NOV | M50: DIC
A51: Adquirir una licencia de Software para concluir el proceso de 380 egresados ante Dirección General de Profesiones | B51: 20 | C51: 20 | D51: 30 | E51: 30 | F51: 30 | G51: 40 | H51: 30 | I51: 30 | J51: 40 | K51: 40 | L51: 40 | M51: 30
A52: Contar con una unidad automotriz para uso de comisiones del personal administrativo y docente, será usado para uso institucional.
A53: AÑO 2020 | B53: ENE | C53: FEB | D53: MAR | E53: ABR | F53: MAY | G53: JUN | H53: JUL | I53: AGO | J53: SEP | K53: OCT | L53: NOV | M53: DIC
A54: Adquirir una unidad automotriz para comisiones administrativas. | E54: 1
A55: Difundir y promocionar los servicios educativos de la Universidad Tecnológica de la Tierra Caliente, mediante los medios de comunicación en la región: Televisión, radio y periódico; así como el uso del internet y medios impresos.
A56: AÑO 2020 | B56: ENE | C56: FEB | D56: MAR | E56: ABR | F56: MAY | G56: JUN | H56: JUL | I56: AGO | J56: SEP | K56: OCT | L56: NOV | M56: DIC
A57: Difusión en radio, periódico, televisión, internet y otros medios impresos | C57: 5 | D57: 5 | E57: 5 | F57: 7 | G57: 8 | H57: 8 | I57: 5 | J57: 2
A58: Contar con material de oficina necesario para facilitar el trabajo del personal administrativo.
A59: AÑO 2020 | B59: ENE | C59: FEB | D59: MAR | E59: ABR | F59: MAY | G59: JUN | H59: JUL | I59: AGO | J59: SEP | K59: OCT | L59: NOV | M59: DIC
A60: Contar con el material necesario de oficina para facilitar el trabajo en las áreas administrativas. | D60: 100 | G60: 100 | J60: 100 | M60: 100
A61: Contar con los servicios generales básicos suficientes para mantener tres edificios de la Universidad Tecnológica como: agua, electricidad, internet, saneamiento, entre otros.
A62: AÑO 2020 | B62: ENE | C62: FEB | D62: MAR | E62: ABR | F62: MAY | G62: JUN | H62: JUL | I62: AGO | J62: SEP | K62: OCT | L62: NOV | M62: DIC
A63: Contar con servicios generales básicos suficientes para mantener a los tres edificios en agua, electricidad, internet, saneamiento y otros. | D63: 100 | G63: 100 | J63: 100 | M63: 100

Sheet Formato 1
B1: Formato 1. Árbol de Problemas
B3: pocas oportunidades de empleo para nuestros egresados y mal remunerados | D3: Bajo nivel academico al no contar con el equipo tecnologico necesario.
B5: Poca aceptaion de nuestros egresados con el sector productivo. | D5: Bajo rendimiento operativo dentro de la UTTC | F5: Personal docente y administrativo no capacitado
D7: Servicios educativos que oferta la Universidad Tecnológica de la Tierra Caliente son insuficientes y mal atendido por el personal
B9: programas educativos no pertinentes ante el Consejo de Vinculación | D9: Falta de procesos administrativos: manuel de procedimientos, reglamentos, normativa. | F9: Falta de capacitaciones al personal docente y administrativo
B11: Falta de espacios recreativos y de estudios | D11: Falta de herramientas y equipo tecnologico | F11: insuficiencia del personal administrativo
A13: Instrucciones:
A15: ¿Cuál es su objetivo?
A16: Analizar el origen, comportamiento y consecuencia del problema definido, a fin de establecer las diversas causas y su dinámica, así como sus efectos, y tendencias de cambio.
A18: ¿En qué consiste?
A19: Una de las alternativas para el análisis del problema consiste en el ordenamiento de las causas y los efctos detectados en un esquema tipo "árbol de problemas", donde el problema definido es el punto de partida, las causas y los efectos, deben relacionarseentre sí estableciendo directas e indirectas.
A21: ¿Para qué se utiliza?
A22: Para coocer la naturaleza y el entorno del problema, lo que permitriá resolverlo (establecer las acciones para solvetar cada una de las causas que lo originan).

Sheet Formato 2
B1: Formato 1. Árbol de Objetivos
B3: Empleos mas calificados y mejor remunedados para nuestros egresados | D3: Alto nivel academico y equipo tecnologico necesario.
B5: Mayor aceptacion de nuestros egresados con el sector productivo. | D5: Mejor rendimiento operativo dentro de la UTTC | F5: Personal docente y administrativoaltamente capacitado
D7: Servicios educativos que ofera la Universidad Tecnológica de la Tierra Caliente son suficientes y de calidad
B9: programas educativos pertinentes ante el Consejo de Vinculación | D9: Contar con los procesos administrativos: manuel de procedimientos, reglamentos y normtiva. | F9: capacitaciones al personal docente y administrativo
B11: espacios suficientes recreativos y de estudios para el estudiante | D11: Suficientes herramientas y equipo tecnologico en los laboratorios y talleres | F11: Eficacia del personal administrativo en sus funciones administrativas

Sheet ESTRUCTUA ANALITICA
A1: Servicios educativos que oferta la Universidad Tecnológica de la Tierra Caliente son de calidad
A2: Problemática | B2: Solución
A3: Efectos | B3: Fines
A4: pocas oportunidades de empleo para nuestros egresados y mal remunerados | B4: Empleos mas calificados y mejor remunedados para nuestros egresados
A5: Poca aceptaion de nuestros egresados con el sector productivo. | B5: Mayor aceptacion de nuestros egresados con el sector productivo.
A6: Bajo nivel academico al no contar con el equipo tecnologico necesario. | B6: Alto nivel academico y equipo tecnologico necesario.
A7: Bajo rendimiento operativo dentro de la UTTC | B7: Mejor rendimiento operativo dentro de la UTTC
A8: Personal docente y administrativo no capacitado | B8: Personal docente y administrativo altamente capacitado
A9: PROBLEMA | B9: OBJETIVO
A10: POBLACION | B10: POBLACIÓN
A11: Servicios educativos que ofera la Universidad Tecnológica de la Tierra Caliente son insuficientes y mal atendido por el personal | B11: Servicios educativos que ofera la Universidad Tecnológica de la Tierra Caliente son suficientes y de calidad
A12: Descripción del problema | B12: Descripción del resultado esperado:
A13: Los servicios educativos que ofrece la UTTC, son insuficientes, ocasionando resultados de desercion escolar de 20% y una tasa de egresados del 60% | B13: Los servicios educativos de la Universidad Tecnologica de la Tierra Caliente mejoren en la calidad de sus servicios, disminuyendo la deserción escolar y aumentando su tasa de egresados.
A14: Magnitud (linea base) | B14: Magnitud (resultado a esperar)
A15: Tasa de deserción anivel TSU del 20% y una tasa de egresados del 60%. | B15: Garantizar al alumnado educacion de calidad en nuestros servicios educativos, aumentando la tasa de egresados a un 85% y disminuir la deserción a un 8%
A16: Causas | B16: Medios
A17: programas educativos no pertinentes ante el Consejo de Vinculación | B17: programas educativos pertinentes ante el Consejo de Vinculación
A18: Contar con actividades culturales, deportivas, artisticas. | B18: Crear tres talleres para la pratica deportiva, artistica.
A19: Falta de procesos administrativos: manuel de procedimientos, reglamentos, normativa. | B19: Contar con los procesos administrativos: manuel de procedimientos, reglamentos y normtiva.
A20: Falta de herramientas y equipo tecnologico | B20: Suficientes herramientas y equipo tecnologico en los laboratorios y talleres
A21: Falta de capacitaciones al personal docente y administrativo | B21: capacitaciones al personal docente y administrativo
A22: insuficiencia del personal administrativo | B22: Eficacia del personal administrativo en sus funciones administrativas

Sheet Formato 3
B1: Formato 3. Para Elaboración del resumen narrativo
A3: Nivel | B3: Resumen Narrativo
A5: Fin | B5: ¿Qué? | D5: Mediante | E5: ¿Cómo?
C6: Empleos más calificados y mejor remunerados para nuestros egresados | D6: Mediante | E6: Ofrecer educación continua como: cursos, congresos, diplomados extracurriculares a nuestros egresados logrando en el, mayores competencias para el mercado laboral.
C7: Mayor aceptación de nuestros egresados con el sector productivo. | D7: a través de | E7: Trabajo colectivo con el sector productivo en la firma de convenios, pertinencia de nuestros programas educativos.
C8: Alto nivel académico y equipo tecnológico necesario. | D8: Mediante | E8: Nuevas estrategias de aprendizaje y la utilización adecuada de los equipos tecnológicos.
C9: Mejor rendimiento operativo dentro de la UTTC | D9: a través de | E9: Procedimientos administrativos, normas, reglamentos, manuales de procedimiento.
C10: Personal docente y administrativo altamente capacitado | D10: a través de | E10: Capacitaciones orientadas a sus funciones primordiales, mediante cursos, diplomados y certificaciones.
A12: Propósito | B12: Sujeto | D12: Verbo | E12: Complemento
C13: Los servicios educativos de la Universidad Tecnológica de la Tierra Caliente | D13: mejoren | E13: En la calidad de sus servicios, disminuyendo la deserción escolar y aumentando su tasa de egresados.
A16: Componentes | B16: Productos | D16: Verbo participio
B17: C.1 | C17: Garantizar que los planes y programas de estudios sean pertinentes y contribuyan a que los estudiantes puedan avanzar exitosamente en su trayectoria educativa, al tiempo que desarrollen aprendizajes significativos y competencias que les sirvan a lo largo de la vida. | D17: Garantizar
B18: C.2 | C18: Formar Profesionistas capacitados para el desarrollo de sus actividades y posicionar a los egresados en el sector productivo. | D18: Pertinencia
B19: C.3 | C19: Asegurar una mayor cobertura con respecto al egreso del nivel medio superior en la región, incrementando la cobertura en Técnico Superior Universitario. | D19: Eficiencia
B20: C.4 | C20: Disminuir el abandono escolar, mejorando la eficiencia terminal y aumentar la tasa de transición en la continuidad de estudios a nivel Ingeniería. | D20: Eficacia
B21: C.5 | C21: Implementar programas de actividades culturales y deportivas diferenciados para atender las diversas necesidades de la población estudiantil. | D21: Pertinencia
B22: C.6 | C22: Garantizar la equidad de genero e inculcar valores de convivenvia mediante la ayuda de cursos de equidad de genero y sexualidad | D22: Pertinencia
B23: C.7 | C23: Implementar capacitaciones al personal docente y administrativo para el desarrollo de sus actividades encomendadas en la Universidad Tecnológica de la Tierra Caliente. | D23: Pertinencia
B24: C.8 | C24: Equipar por lo menos un laboratorio con equipos y herramientas de bajo costo para las prácticas de nuestros alumnos. | D24: Eficiencia
B25: C.9 | C25: Contar con una licencia de software para 380 egresados para concluir su trámite de titulación electrónica ante Dirección General de Profesiones. | D25: Eficacia
B26: C.10 | C26: Contar con una unidad automotriz para uso de comisiones del personal administrativo y docente, será usado para uso institucional. | D26: Eficiencia
B27: C.11 | C27: Difundir y promocionar los servicios educativos de la Universidad Tecnológica de la Tierra Caliente, mediante los medios de comunicación en la región: Televisión, radio y periódico; así como el uso del internet y medios impresos. | D27: Pertinencia
A29: Actividades | B29: C.1 | C29: Programas educativos pertinentes ante el Consejo de Vinculación
B30: Administrar y elaborar estudios de factibilidad. Colaboración con el sector productivo (Convenios de colaboración) y para la elaboración de Análisis Situacional del Trabajo (AST) de acuerdo a las necesidades del mercado. Aprobación de los programas educativos por parte del comité de pertinencia
B31: C.2 | C31: Formar Profesionistas capacitados para el desarrollo de sus actividades y posicionar a los egresados en el sector productivo.
B32: Cumplir con el plan de estudios a nivel Técnico Superior Universitario de 30 practica y 70% teoría. Realizar viajes de estudios Seguimiento al egresado a nivel Técnico Superior Universitario Implementación de una bolsa de trabajo para nuestros egresados
B33: C.3 | C33: Asegurar una mayor cobertura con respecto al egreso del nivel medio superior en la región, incrementando la cobertura en Técnico Superior Universitario.
B34: Visitar 30 escuelas de nivel media superior de la región. Participar en las expo-profesionales que realizan las preparatorias de la región. Visitar puntos estratégicos de los nueve municipios de la región como plazas, tianguis y ferias.
B35: C.4 | C35: Disminuir el abandono escolar, mejorando la eficiencia terminal y aumentar la tasa de transición en la continuidad de estudios a nivel Ingeniería.
B36: Implementación de tutorías y asesorías Atención alumnos vulnerables (académico, socioeconómico y psicológico) Otorgar becas alimenticias por cuatrimestre alumnos en situación económica. Otorgar becas de colegiatura alumnos destacados académicamente.
B37: C.5 | C37: Implementar programas de actividades culturales y deportivas diferenciados para atender las diversas necesidades de la población estudiantil.
B38: Participar en el encuentro deportivo cultural de Universidades Tecnológicas Integrar tres talleres: Un deportivo, un cultural y Artístico. Participar en eventos culturales (Desfiles, culturales) Realizar eventos internos como: aniversario, Día del TSU, presentación de proyectos
B39: C.6 | C39: Garantizar la equidad de genero e inculcar valores de convivenvia mediante la ayuda de cursos de equidad de genero y sexualidad
B40: Realizar cursos de equidad de genero para todo el alumnado y personal que labora dentro de la Universidad. Atender y garantizar el respeto a la mujer en todos los servicios educativos que ofrece la Universidad. Iniciar los procesos de certificación en equidad de genero
B41: C.7 | C41: Implementar capacitaciones al personal docente y administrativo para el desarrollo de sus actividades encomendadas en la Universidad Tecnológica de la Tierra Caliente.
B42: Participar en el 26 congreso de administración Capacitar al personal docente en competencias educativas, certificaciones de office. Capacitar al personal administrativo y docente en temas de liderazgo, trabajo en equipo, equidad, toma de decisiones, entre otros.
B43: C.8 | C43: Equipar por lo menos un laboratorio con equipos y herramientas de bajo costo para las prácticas de nuestros alumnos.
B44: Suministrar con equipo informático el laboratorio de tecnologías Suministrar con tres proyectores para la carrera de administración y energías renovables. Adquirir una impresora 3D para la carrera de TIC-SI
B45: C.9 | C45: Contar con una licencia de software para 380 egresados para concluir su trámite de titulación electrónica ante Dirección General de Profesiones.
B46: Adquirir una licencia de Software para concluir el proceso de 380 egresados ante Dirección General de Profesiones
B47: C.10 | C47: Contar con una unidad automotriz para uso de comisiones del personal administrativo y docente, será usado para uso institucional.
B48: Adquirir una unidad automotriz para comisiones administrativas.
B49: C.11 | C49: Difundir y promocionar los servicios educativos de la Universidad Tecnológica de la Tierra Caliente, mediante los medios de comunicación en la región: Televisión, radio y periódico; así como el uso del internet y medios impresos.
B50: Difusión en radio, periódico, televisión, internet y otros medios impresos

Sheet Formato 4
B1: Formato 4. MIR
A2: Eje: | B2: 3. GUERRERO SOCIALMENTE COMPROMETIDO
A3: Objetivo: | B3: 3.8. IMPULSAR LA EDUCACIÓN DE CALIDAD PARA TODOS
A4: Estrategia: | B4: 3.8.3. Garantizar que los planes y programas de estudio sean pertinentes y contribuyan a que los estudiantes avancen exitosamente en su trayectoria educativa, al tiempo que desarrollen aprendizajes significativos y competencias que le sirvan al árbol de la vida; 3.8.5. Disminuir la deserción escolar y fomentar la conclusión de los estudios en sus diferentes niveles. 3.9.1. Colocar a la cultura como un elemento prioritario para el desarrollo integral de los guerrerenses; 3.9.5. Diseñar programas de actividad física y deportiva para atender las necesidades de la población.
A5: Línea de Acción: | B5: Fomentar desde la educación básica los conocimientos, las habilidades y las aptitudes que estimulen la investigación y la innovación científicas y tecnológicas. Ampliar y fortalecer la operaciones de los sistemas de apoyo tutorial, con el fin de reducir los niveles de deserción de los estudiantes y favorecer la conclusión oportuna de sus estudios. Asegurar que a cultura se integre al proceso educativo de la población en sus tiempos libres y de recreación como una forma de acrecentar los valores, las costumbres, el deporte, los derechos, la equidad de género, y la ciudadanía. Promover la práctica deportiva con un enfoque que fomente los valores como el trabajo en equipo, el respeto a las reglas y la obtención del éxito mediante el esfuerzo individual y colectivo.
B7: Matriz de indicadores para Resultados
B8: Resumen Narrativo | C8: Indicadores de desempeño | D8: Medios de Verificación | E8: Supuestos
A10: Fin | B10: Mayor aceptación de nuestros egresados con el sector productivo. | C10: Convenios colaborativos Colocación de alumnos en estadía Mayor viajes de estudios: congresos, empresas, etc. | D10: Informe de Consejo y http://guerrero.gob.mx/transparencia/informacion-publica-de-oficio-uttc-2017/ | E10: Más oportunidades de desarrollo profesional para nuestros egresados y mayor aceptación del sector productivo.
A11: Fin | B11: Alto nivel académico y equipo tecnológico necesario. | C11: Tasa de deserción a nivel TSU menor a 5% Aprovechamiento escolar del 8.6. Utilización de laboratorios y talleres. | D11: Informe de Consejo y http://guerrero.gob.mx/transparencia/informacion-publica-de-oficio-uttc-2017/ | E11: Mayor capacitados y mejor uso de laboratorios y talleres.
A12: Fin | B12: Mejor rendimiento operativo dentro de la UTTC | C12: Encuestas de satisfacción de servicios Manual de procedimientos Cumplimiento de objetivos o metas por área. | D12: Informe de Consejo Control y seguimientos de procesos adm. http://guerrero.gob.mx/transparencia/informacion-publica-de-oficio-uttc-2017/ | E12: Calidad en nuestros servicios educativos con el objetivo de alcanzar una certificación en ISO.
A13: Fin | B13: Personal docente y administrativo altamente capacitado | C13: Capacitaciones para el personal docente y administrativo. Personal capacitado y no capacitado. | D13: Informe de Consejo y http://guerrero.gob.mx/transparencia/informacion-publica-de-oficio-uttc-2017/ | E13: Personal altamente capacitado y mayor servicio educativo.
A14: Propósito (resultados) | B14: Los servicios educativos de la Universidad Tecnológica de la Tierra Caliente mejoren en la calidad de sus servicios, disminuyendo la deserción escolar y aumentando su tasa de egresados. | C14: Calidad en los servicios educativos. Disminución de deserción escolar a nivel TSU. Aumentar la tasa de egresados a un 85% | D14: Informe de Consejo y http://guerrero.gob.mx/transparencia/informacion-publica-de-oficio-uttc-2017/ | E14: Contar con su manual de procedimientos y reglamento vigente; mejorar la calidad de nuestros servicios para lograr una certificación; también aumentar la tasa de egresados y disminuir el abandono escolar.
A15: Componentes (Servicios y Productos) | B15: Garantizar que los planes y programas de estudios sean pertinentes y contribuyan a que los estudiantes puedan avanzar exitosamente en su trayectoria educativa, al tiempo que desarrollen aprendizajes significativos y competencias que les sirvan a lo largo de la vida. | C15: Programas educativos pertinentes | D15: Informe de Consejo y http://guerrero.gob.mx/transparencia/informacion-publica-de-oficio-uttc-2017/ | E15: Garantizar la pertinencia de nuestros programas educativos ante el sector productivo.
A16: Componentes (Servicios y Productos) | B16: Formar Profesionistas capacitados para el desarrollo de sus actividades y posicionar a los egresados en el sector productivo. | C16: Egresados con empleo a seis meses de su egreso | D16: Informe de Consejo y http://guerrero.gob.mx/transparencia/informacion-publica-de-oficio-uttc-2017/ | E16: Que egresados tengan más oportunidades de empleo a seis meses de su egreso.
A17: Componentes (Servicios y Productos) | B17: Asegurar una mayor cobertura con respecto al egreso del nivel medio superior en la región, incrementando la cobertura en Técnico Superior Universitario. | C17: Lograr una matrícula de nuevo ingreso de 225 para el ciclo escolar 2020 - 2021 | D17: En Transparencia http://guerrero.gob.mx/transparencia/informacion-publica-de-oficio-uttc-2017/ | E17: Superar nuestra meta de 225 alumnos de nuevo ingreso.
A18: Componentes (Servicios y Productos) | B18: Disminuir el abandono escolar, mejorando la eficiencia terminal y aumentar la tasa de transición en la continuidad de estudios a nivel Ingeniería. | C18: Atención de alumnos vulnerables | D18: En Transparencia http://guerrero.gob.mx/transparencia/informacion-publica-de-oficio-uttc-2017/ | E18: Atender alumnos vulnerables y disminuir la deserción escolar.
A19: Componentes (Servicios y Productos) | B19: Implementar programas de actividades culturales y deportivas diferenciados para atender las diversas necesidades de la población estudiantil. | C19: Integración y participación de nuestros alumnos a los talleres. | D19: Informe de consejo | E19: Desempeñarnos ante la sociedad en eventos deportivos, culturales y artísticos.
A20: Componentes (Servicios y Productos) | B20: Garantizar la equidad de genero e inculcar valores de convivenvia mediante la ayuda de cursos de equidad de genero y sexualidad | C20: Atender al alumnado y garantizar la equidad de genero | D20: Informe de consejo | E20: Garantizar la eqyuidad de genero
A21: Componentes (Servicios y Productos) | B21: Implementar capacitaciones al personal docente y administrativo para el desarrollo de sus actividades encomendadas en la Universidad Tecnológica de la Tierra Caliente. | C21: Capacitar al personal docente y administrativo de acuerdo a sus necesidades | D21: Informe de consejo | E21: Que el personal docente y administrativo sea eficiente en sus actividades diarias.
A22: Componentes (Servicios y Productos) | B22: Equipar por lo menos un laboratorio con equipos y herramientas de bajo costo para las prácticas de nuestros alumnos. | C22: Cumplir con el plan de estudios. | D22: Informe de consejo | E22: Lograr que nuestros alumnos cuente con el material necesario para realizar sus prácticas profesionales,
A23: Componentes (Servicios y Productos) | B23: Contar con una licencia de software para 380 egresados para concluir su trámite de titulación electrónica ante Dirección General de Profesiones. | C23: Egresados con título electrónico. | D23: Informe de consejo, Información de MECASUT | E23: Tramitar ante dirección General de Profesiones los títulos electrónicos de nuestros egresados de las generaciones anteriores.
A24: Componentes (Servicios y Productos) | B24: Contar con una unidad automotriz para uso de comisiones del personal administrativo y docente, será usado para uso institucional. | C24: Contar con el primer vehículo institucional | D24: Informe de consejo | E24: Ahorro de viáticos y ahorro de gasolina en comisiones institucionales
A25: Componentes (Servicios y Productos) | B25: Difundir y promocionar los servicios educativos de la Universidad Tecnológica de la Tierra Caliente, mediante los medios de comunicación en la región: Televisión, radio y periódico; así como el uso del internet y medios impresos. | C25: Que a toda la sociedad conozca la oferta educativa | D25: Informe de consejo | E25: Asegurar una mayor comunicación y mayor aceptación de distintas personas que desean estudiar en la UT
A26: Actividades (Procesos) | B26: Estudios de factibilidad de los programas educativos | C26: Contar con los estudios que acrediten la pertinencia de nuestros programas educativos. | D26: Informe de Consejo y http://guerrero.gob.mx/transparencia/informacion-publica-de-oficio-uttc-2017/ | E26: Garantizar mediante los estudios la pertinencia de tres programas educativos
A27: Actividades (Procesos) | B27: Análisis Situacional del Trabajo (AST) con ayuda del comité de pertinencia | C27: AST realizados por carrera | D27: Informe de Consejo y http://guerrero.gob.mx/transparencia/informacion-publica-de-oficio-uttc-2017/ | E27: Garantizar la pertinencia de nuestros programas educativos ante el sector productivo.
A28: Actividades (Procesos) | B28: Aprobación de los programas educativos por parte del comité de pertinencia | C28: Aprobación de la pertinencia educativa. | D28: Informe de Consejo y http://guerrero.gob.mx/transparencia/informacion-publica-de-oficio-uttc-2017/ | E28: Garantizar la pertinencia de nuestros programas educativos ante el sector productivo.
A29: Actividades (Procesos) | B29: Cumplir con el plan de estudios a nivel Técnico Superior Universitario de 30 practica y 70% teoría. | C29: Cumplir con el plan de estudios a nivel TSU | D29: informe de consejo | E29: Cumplir en su totalidad con el plan de estudios a nivel Técnico Superior Universitario.
A30: Actividades (Procesos) | B30: Firma de convenios de colaboración con el sector productivo | C30: Contar con más convenios de colaboración | D30: informe de consejo | E30: Lograr 20 convenios de colaboración en el año, para más oportunidades para nuestros egresados
A31: Actividades (Procesos) | B31: Seguimiento al egresado a nivel Técnico Superior Universitario | C31: Dar el seguimiento a nuestros egresados | D31: informe de consejo | E31: Conocer el estatus laboral de nuestros egresados, tanto profesional y social.
A32: Actividades (Procesos) | B32: Implementación de una bolsa de trabajo para nuestros egresados | C32: Empresas colaborativas (Convenios) nos ofrezcan como primera opción a nuestros egresados la oportunidad de empleo. | D32: Informe de Consejo y http://guerrero.gob.mx/transparencia/informacion-publica-de-oficio-uttc-2017/ | E32: Que nuestros egresados tengan más oportunidades de empleo con empresas colaborativas.
A33: Actividades (Procesos) | B33: Visitar 30 escuelas de nivel media superior de la región. | C33: Lograr una matrícula de nuevo ingreso de 225 para el ciclo escolar 2020 - 2021 | D33: informe de consejo, información enviada a la CGUTyP | E33: Superar la matrícula de nuevo ingreso de 225 para el ciclo escolar 2020 - 2021
A34: Actividades (Procesos) | B34: Participar en las expo-profesionales que realizan las preparatorias de la región.
A35: Actividades (Procesos) | B35: Visitar puntos estratégicos de los nueve municipios de la región como plazas, tianguis y ferias.
A36: Actividades (Procesos) | B36: Implementación de tutorías y asesorías | C36: Cumplir con el total de tutorías y asesorías | D36: informe de consejo | E36: Lograr atender al 100% en tutorías a nuestros alumnos, y asesorar alumnado en situaciones académicas.
A37: Actividades (Procesos) | B37: Atención alumnos vulnerables (académico, socioeconómico y psicológico) | C37: Diagnosticar y atender alumnos en situación vulnerables | D37: informe de consejo | E37: Atender alumnos vulnerables y disminuir la deserción escolar hasta un 8% a nivel TSU
A38: Actividades (Procesos) | B38: Otorgar becas alimenticias por cuatrimestre alumnos en situación económica. | C38: Otorgar diez becas alimenticias alumnos vulnerables | D38: informe de consejo | E38: Con ayuda de la cooperativa otorgar diez becas alimenticias alumnos vulnerables.
A39: Actividades (Procesos) | B39: Otorgar becas de colegiatura alumnos destacados académicamente. | C39: Otorgar becas de descuento de colegiatura alumnos con aprovechamiento de 9.0 | D39: informe de consejo | E39: Ofrecer a nuestros alumnos destacados descuentos en colegiatura por su desempeño académico.
A40: Actividades (Procesos) | B40: Participar en el encuentro deportivo cultural de Universidades Tecnológicas | C40: Participar en el encuentro deportivo regional de UT | D40: informe de consejo | E40: Participar y obtener primeros lugares en el evento deportivo de UT.
A41: Actividades (Procesos) | B41: Integrar tres talleres: Un deportivo, un cultural y Artístico | C41: Integrar tres talleres/ participación de nuestro alumnado | D41: informe de consejo | E41: Integrar tres talleres con la participación de nuestros alumnos para representar a la UT.
A42: Actividades (Procesos) | B42: Participar en eventos deportivos | C42: Participar en liga municipales en distintos deportes | D42: informe de consejo | E42: Participar y fomentar el deporte a nuestros alumnos en ligas municipales.
A43: Actividades (Procesos) | B43: Participar en eventos culturales (Desfiles, culturales) | C43: Participar en eventos | D43: informe de consejo | E43: Participar en 10 eventos culturales de la región.
A44: Actividades (Procesos) | B44: Realizar eventos internos como: aniversario, Día del TSU, presentación de proyectos | C44: Realizar eventos internos conmemorativos | D44: informe de consejo | E44: Festejar aniversario, día del TSU y presentación de proyectos.
A45: Actividades (Procesos) | B45: Realizar cursos de equidad de genero para todo el alumnado y personal que labora dentro de la Universidad. | C45: Que todo el alumnado y personal docente participe en los cursos de equidad de genero | D45: informe de consejo | E45: Lograr que todo el alumnaddo y el personal de la utttc sea conciente y responsable en la equidad de genero
A46: Actividades (Procesos) | B46: Atender y garantizar el respeto a la mujer en todos los servicios educativos que ofrece la Universidad. | C46: Atender al alumnado y garantizar la equidad de genero | D46: informe de consejo | E46: Garantizar el respetoi a la mujer
A47: Actividades (Procesos) | B47: Iniciar los procesos de certificación en equidad de genero | C47: Certificar a la UTTC en equidad de genero | D47: informe de consejo | E47: otener la certificacion de equidad de genero
A48: Actividades (Procesos) | B48: Participar en el 26 congreso de administración | C48: Participar en un congreso realizado por el comité de directores de administración del subsistema | D48: informe de consejo | E48: Participar en un congreso realizado por el comité de directores de administración del subsistema
A49: Actividades (Procesos) | B49: Capacitar al personal docente en competencias educativas, certificaciones de office. | C49: Capacitar al personal docente y administrativo de acuerdo a las necesidades laborales | D49: informe de consejo | E49: Contar con el personal administrativo y docente altamente capacitado para sus funciones; garantizando que cada uno de ellos conozca sus funciones primordiales y se obtengan resultados aceptables.
A50: Actividades (Procesos) | B50: Capacitar al personal administrativo y docente en temas de liderazgo, trabajo en equipo, equidad, toma de decisiones, entre otros.
A51: Actividades (Procesos) | B51: Suministrar con equipo informático el laboratorio de tecnologías | C51: Contar con equipo necesario para el laboratorio de TIC | D51: informe de consejo | E51: Contar con herramienta necesaria para practica en la carrera de TIC
A52: Actividades (Procesos) | B52: Suministrar con tres proyectores para la carrera de administración y energías renovables. | C52: Contar con tres proyectores | D52: informe de consejo | E52: Abarcar con tres proyectores dos programas educativos.
A53: Actividades (Procesos) | B53: Adquirir una impresora 3D para la carrera de TIC-SI | C53: Contar con equipo de impresión en 3D para practicas | D53: informe de consejo | E53: Contar con herramienta necesaria para practica en la carrera de TIC
A54: Actividades (Procesos) | B54: Adquirir una licencia de Software para concluir el proceso de 380 egresados ante Dirección General de Profesiones | C54: Titular al 100% de nuestros egresados | D54: informe de consejo | E54: Cubrir la demanda de egreso a nivel TSU e ingeniería para que obtengan su título electrónico.
A55: Actividades (Procesos) | B55: Adquirir una unidad automotriz para comisiones administrativas. | C55: Mayor ahorro de viáticos | D55: informe de consejo | E55: Eficientizar el ahorro de viáticos y ahorro de gasolina en comisiones institucionales
A56: Actividades (Procesos) | B56: Difusión en radio, periódico, televisión, internet y otros medios impresos | C56: Difundir en medios comunicativos la oferta educativa | D56: informe de consejo | E56: Asegurar una mayor comunicación y mayor aceptación de distintas personas que desean estudiar en la UT
